[Event "FIDE Grand Swiss 2023"]
[Site "Villa Marina, Douglas, Isle of Man, Isle Of Man"]
[Date "2023.10.26"]
[Round "2.49"]
[White "Yilmaz, Mustafa"]
[Black "Dardha, Daniel"]
[Result "1/2-1/2"]
[TimeControl "40/90 + 30 + 30s/move"]
[WhiteFideId "6302718"]
[BlackFideId "240990"]
[WhiteElo "2640"]
[BlackElo "2580"]

1. d4 {[%clk 01:40:57]} {[%emt 00:00:02]} Nf6 {[%clk 01:40:54]} {[%emt
00:00:07]} 2. c4 {[%clk 01:41:21]} {[%emt 00:00:05]} e6 {[%clk 01:41:19]}
{[%emt 00:00:05]} 3. Nc3 {[%clk 01:41:48]} {[%emt 00:00:04]} Bb4 {[%clk
01:41:37]} {[%emt 00:00:11]} 4. e3 {[%clk 01:42:12]} {[%emt 00:00:06]} O-O
{[%clk 01:41:56]} {[%emt 00:00:11]} 5. Bd3 {[%clk 01:42:35]} {[%emt 00:00:07]}
d5 {[%clk 01:42:16]} {[%emt 00:00:09]} 6. cxd5 {[%clk 01:42:26]} {[%emt
00:00:39]} exd5 {[%clk 01:42:31]} {[%emt 00:00:15]} 7. a3 {[%clk 01:42:44]}
{[%emt 00:00:13]} Bd6 {[%clk 01:39:34]} {[%emt 00:03:25]} 8. Qc2 {[%clk
01:42:50]} {[%emt 00:00:26]} c6 {[%clk 01:36:28]} {[%emt 00:03:36]} 9. Nge2
{[%clk 01:42:56]} {[%emt 00:00:23]} Re8 {[%clk 01:36:41]} {[%emt 00:00:17]} 10.
Bd2 {[%clk 01:39:36]} {[%emt 00:03:50]} Nbd7 {[%clk 01:34:57]} {[%emt
00:02:13]} 11. f3 {[%clk 01:36:24]} {[%emt 00:03:42]} c5 {[%clk 01:31:40]}
{[%emt 00:03:47]} 12. g4 {[%clk 01:30:23]} {[%emt 00:06:31]} g6 {[%clk
01:27:21]} {[%emt 00:04:49]} 13. dxc5 {[%clk 01:20:24]} {[%emt 00:10:29]} Nxc5
{[%clk 01:22:53]} {[%emt 00:04:59]} 14. O-O-O {[%clk 01:19:20]} {[%emt
00:01:33]} Be6 {[%clk 01:18:31]} {[%emt 00:04:53]} 15. Nd4 {[%clk 01:08:44]}
{[%emt 00:11:06]} Nxd3+ {[%clk 01:12:42]} {[%emt 00:06:19]} 16. Qxd3 {[%clk
01:09:11]} {[%emt 00:00:02]} Nd7 {[%clk 01:11:22]} {[%emt 00:01:51]} 17. Kb1
{[%clk 01:04:33]} {[%emt 00:05:09]} Ne5 {[%clk 01:10:17]} {[%emt 00:01:34]} 18.
Qb5 {[%clk 01:02:10]} {[%emt 00:02:53]} a6 {[%clk 00:55:11]} {[%emt 00:15:37]}
19. Qb3 {[%clk 01:00:43]} {[%emt 00:01:56]} Bc5 {[%clk 00:47:07]} {[%emt
00:08:34]} 20. Nxe6 {[%clk 00:53:58]} {[%emt 00:07:15]} fxe6 {[%clk 00:47:26]}
{[%emt 00:00:11]} 21. e4 {[%clk 00:53:35]} {[%emt 00:00:53]} d4 {[%clk
00:40:53]} {[%emt 00:07:03]} 22. Bf4 {[%clk 00:43:17]} {[%emt 00:10:49]} Nc6
{[%clk 00:34:56]} {[%emt 00:06:26]} 23. Ne2 {[%clk 00:37:44]} {[%emt 00:06:03]}
Rc8 {[%clk 00:32:38]} {[%emt 00:02:49]} 24. h4 {[%clk 00:34:53]} {[%emt
00:03:20]} Qb6 {[%clk 00:31:38]} {[%emt 00:01:30]} 25. Qxb6 {[%clk 00:23:42]}
{[%emt 00:11:41]} Bxb6 {[%clk 00:32:03]} {[%emt 00:00:04]} 26. h5 {[%clk
00:23:29]} {[%emt 00:00:43]} Rf8 {[%clk 00:30:34]} {[%emt 00:01:59]} 27. hxg6
{[%clk 00:20:38]} {[%emt 00:03:21]} hxg6 {[%clk 00:29:13]} {[%emt 00:01:51]} 28.
Rh3 {[%clk 00:19:04]} {[%emt 00:02:04]} e5 {[%clk 00:27:21]} {[%emt 00:02:22]}
29. Bh6 {[%clk 00:17:02]} {[%emt 00:02:31]} Rf7 {[%clk 00:25:35]} {[%emt
00:02:17]} 30. Nc1 {[%clk 00:13:14]} {[%emt 00:04:18]} Rh7 {[%clk 00:22:02]}
{[%emt 00:04:02]} 31. Nd3 {[%clk 00:06:42]} {[%emt 00:07:02]} Bc7 {[%clk
00:20:01]} {[%emt 00:02:30]} 32. Rdh1 {[%clk 00:06:05]} {[%emt 00:01:08]} Bd6
{[%clk 00:20:04]} {[%emt 00:00:27]} 33. Bg5 {[%clk 00:03:59]} {[%emt 00:02:35]}
Rcc7 {[%clk 00:19:29]} {[%emt 00:01:05]} 34. Rh6 {[%clk 00:01:42]} {[%emt
00:02:47]} Rxh6 {[%clk 00:19:02]} {[%emt 00:00:57]} 35. Rxh6 {[%clk 00:02:10]}
{[%emt 00:00:02]} Kg7 {[%clk 00:19:16]} {[%emt 00:00:16]} 36. Rh3 {[%clk
00:02:30]} {[%emt 00:00:10]} Kg8 {[%clk 00:18:13]} {[%emt 00:01:34]} 37. Rh6
{[%clk 00:02:57]} {[%emt 00:00:03]} Kg7 {[%clk 00:18:33]} {[%emt 00:00:09]} 38.
Rh3 {[%clk 00:03:12]} {[%emt 00:00:15]} Kg8 {[%clk 00:18:56]} {[%emt 00:00:07]}
39. Kc2 {[%clk 00:00:39]} {[%emt 00:03:04]} Rh7 {[%clk 00:08:16]} {[%emt
00:11:10]} 40. Rxh7 {[%clk 00:01:05]} {[%emt 00:00:05]} Kxh7 {[%clk 00:08:43]}
{[%emt 00:00:03]} 41. Nc1 {[%clk 00:30:56]} {[%emt 00:20:38]} Kg7 {[%clk
00:57:01]} {[%emt 00:02:12]} 42. Kd3 {[%clk 00:30:42]} {[%emt 00:00:44]} Kf7
{[%clk 00:56:43]} {[%emt 00:00:48]} 43. Ne2 {[%clk 00:30:34]} {[%emt 00:00:38]}
b5 {[%clk 00:51:19]} {[%emt 00:05:54]} 44. Bd2 {[%clk 00:27:28]} {[%emt
00:03:35]} Nd8 {[%clk 00:43:23]} {[%emt 00:08:26]} 45. f4 {[%clk 00:20:18]}
{[%emt 00:07:41]} Ne6 {[%clk 00:39:27]} {[%emt 00:04:26]} 46. fxe5 {[%clk
00:20:30]} {[%emt 00:00:18]} Bxe5 {[%clk 00:39:51]} {[%emt 00:00:06]} 47. b4
{[%clk 00:20:43]} {[%emt 00:00:18]} a5 {[%clk 00:37:40]} {[%emt 00:02:41]} 48.
Be1 {[%clk 00:09:13]} {[%emt 00:11:58]} axb4 {[%clk 00:36:25]} {[%emt
00:01:46]} 49. axb4 {[%clk 00:09:42]} {[%emt 00:00:01]} Ke7 {[%clk 00:34:35]}
{[%emt 00:02:20]} 50. Bd2 {[%clk 00:07:35]} {[%emt 00:02:37]} Kf6 {[%clk
00:32:40]} {[%emt 00:02:25]} 51. Ng1 {[%clk 00:07:29]} {[%emt 00:00:36]} Nf4+
{[%clk 00:31:30]} {[%emt 00:01:41]} 52. Bxf4 {[%clk 00:04:38]} {[%emt
00:03:21]} Bxf4 {[%clk 00:31:56]} {[%emt 00:00:03]} 53. Kxd4 {[%clk 00:01:01]}
{[%emt 00:04:07]} Bd6 {[%clk 00:32:05]} {[%emt 00:00:21]} 54. e5+ {[%clk
00:01:00]} {[%emt 00:00:31]} Bxe5+ {[%clk 00:32:27]} {[%emt 00:00:08]} 55. Kc5
{[%clk 00:01:28]} {[%emt 00:00:02]} Bc3 {[%clk 00:30:20]} {[%emt 00:02:37]} 56.
Nf3 {[%clk 00:01:57]} {[%emt 00:00:01]} Ke6 {[%clk 00:28:53]} {[%emt 00:01:57]}
57. Nh4 {[%clk 00:01:24]} {[%emt 00:01:02]} Ke5 {[%clk 00:28:21]} {[%emt
00:01:03]} 58. Nxg6 {[%clk 00:00:57]} {[%emt 00:00:58]} Kf6 {[%clk 00:28:46]}
{[%emt 00:00:05]} 59. Nf4 {[%clk 00:00:49]} {[%emt 00:00:37]} Bxb4+ {[%clk
00:29:10]} {[%emt 00:00:06]} 60. Kxb4 {[%clk 00:01:16]} {[%emt 00:00:03]} Kg5
{[%clk 00:29:34]} {[%emt 00:00:06]} 61. Nd5 {[%clk 00:01:44]} {[%emt 00:00:02]}
Kxg4 {[%clk 00:29:58]} {[%emt 00:00:06]} 62. Kxb5 {[%clk 00:02:13]} {[%emt
00:00:02]} 1/2-1/2

[Event "FIDE Grand Swiss 2023"]
[Site "Villa Marina, Douglas, Isle of Man, Isle Of Man"]
[Date "2023.10.26"]
[Round "2.50"]
[White "Parligras, Mircea-Emilian"]
[Black "Warmerdam, Max"]
[Result "1/2-1/2"]
[TimeControl "40/90 + 30 + 30s/move"]
[WhiteFideId "1204297"]
[BlackFideId "1048104"]
[WhiteElo "2561"]
[BlackElo "2636"]

1. d4 {[%clk 01:40:56]} {[%emt 00:00:02]} Nf6 {[%clk 01:40:55]} {[%emt
00:00:05]} 2. c4 {[%clk 01:41:20]} {[%emt 00:00:06]} e6 {[%clk 01:41:20]}
{[%emt 00:00:04]} 3. Nf3 {[%clk 01:41:39]} {[%emt 00:00:11]} d5 {[%clk
01:41:40]} {[%emt 00:00:09]} 4. g3 {[%clk 01:41:56]} {[%emt 00:00:13]} dxc4
{[%clk 01:37:13]} {[%emt 00:04:58]} 5. Bg2 {[%clk 01:42:07]} {[%emt 00:00:19]}
Bb4+ {[%clk 01:37:36]} {[%emt 00:00:07]} 6. Bd2 {[%clk 01:36:43]} {[%emt
00:05:54]} a5 {[%clk 01:37:54]} {[%emt 00:00:12]} 7. a3 {[%clk 01:34:15]}
{[%emt 00:02:59]} Be7 {[%clk 01:27:32]} {[%emt 00:10:51]} 8. Qa4+ {[%clk
01:23:40]} {[%emt 00:11:06]} Nbd7 {[%clk 01:27:55]} {[%emt 00:00:06]} 9. Qxc4
{[%clk 01:22:13]} {[%emt 00:01:58]} O-O {[%clk 01:26:43]} {[%emt 00:01:42]} 10.
Nc3 {[%clk 01:17:03]} {[%emt 00:05:40]} b6 {[%clk 01:16:23]} {[%emt 00:10:49]}
11. Ne5 {[%clk 01:07:00]} {[%emt 00:10:33]} Ba6 {[%clk 01:16:09]} {[%emt
00:00:44]} 12. Qa4 {[%clk 01:03:48]} {[%emt 00:03:42]} Nxe5 {[%clk 01:15:52]}
{[%emt 00:00:48]} 13. dxe5 {[%clk 01:04:11]} {[%emt 00:00:06]} Nd5 {[%clk
01:16:08]} {[%emt 00:00:14]} 14. Qc6 {[%clk 00:59:05]} {[%emt 00:05:37]} Rb8
{[%clk 01:06:17]} {[%emt 00:10:21]} 15. Nxd5 {[%clk 00:58:58]} {[%emt
00:00:37]} exd5 {[%clk 01:06:42]} {[%emt 00:00:05]} 16. Qxd5 {[%clk 00:56:00]}
{[%emt 00:03:28]} Qc8 {[%clk 01:02:58]} {[%emt 00:04:14]} 17. Qb3 {[%clk
00:46:17]} {[%emt 00:10:12]} Qf5 {[%clk 00:59:36]} {[%emt 00:03:52]} 18. Bf3
{[%clk 00:41:59]} {[%emt 00:04:49]} Bc5 {[%clk 00:55:11]} {[%emt 00:04:55]} 19.
Bc3 {[%clk 00:37:51]} {[%emt 00:04:38]} Bb7 {[%clk 00:42:40]} {[%emt 00:13:01]}
20. Qd1 {[%clk 00:22:54]} {[%emt 00:15:28]} Be4 {[%clk 00:34:54]} {[%emt
00:08:15]} 21. O-O {[%clk 00:21:24]} {[%emt 00:02:01]} Rbd8 {[%clk 00:34:40]}
{[%emt 00:00:45]} 22. Qc1 {[%clk 00:17:06]} {[%emt 00:04:48]} Bxf3 {[%clk
00:34:20]} {[%emt 00:00:49]} 23. exf3 {[%clk 00:17:31]} {[%emt 00:00:05]} Qxf3
{[%clk 00:34:24]} {[%emt 00:00:26]} 24. Bxa5 {[%clk 00:17:00]} {[%emt
00:01:02]} Rd4 {[%clk 00:20:55]} {[%emt 00:13:59]} 25. Bc3 {[%clk 00:12:05]}
{[%emt 00:05:26]} Rg4 {[%clk 00:16:33]} {[%emt 00:04:51]} 26. Qd1 {[%clk
00:12:24]} {[%emt 00:00:11]} Rxg3+ {[%clk 00:16:56]} {[%emt 00:00:06]} 27. hxg3
{[%clk 00:12:51]} {[%emt 00:00:03]} Qxg3+ {[%clk 00:17:21]} {[%emt 00:00:05]}
28. Kh1 {[%clk 00:13:16]} {[%emt 00:00:05]} Qhg1 {[%clk 00:13:42]} {[%emt 00:00:04]} Qg3+ {[%clk 00:18:14]}
{[%emt 00:00:03]} 30. Kh1 {[%clk 00:14:03]} {[%emt 00:00:09]} Qh3+ {[%clk
00:18:41]} {[%emt 00:00:03]} 1/2-1/2

[Event "FIDE Grand Swiss 2023"]
[Site "Villa Marina, Douglas, Isle of Man, Isle Of Man"]
[Date "2023.10.26"]
[Round "2.51"]
[White "Idani, Pouya"]
[Black "Adhiban, B."]
[Result "1-0"]
[TimeControl "40/90 + 30 + 30s/move"]
[WhiteFideId "12510130"]
[BlackFideId "5018471"]
[WhiteElo "2633"]
[BlackElo "2551"]

1. e4 {[%clk 01:40:58]} e5 {[%clk 01:40:53]} {[%emt 00:00:07]} 2. Nc3 {[%clk
01:41:23]} {[%emt 00:00:05]} Nf6 {[%clk 01:41:06]} {[%emt 00:00:18]} 3. Bc4
{[%clk 01:41:46]} {[%emt 00:00:06]} Nc6 {[%clk 01:34:40]} {[%emt 00:06:56]} 4.
d3 {[%clk 01:41:55]} {[%emt 00:00:21]} Bb4 {[%clk 01:35:07]} {[%emt 00:00:03]}
5. Bd2 {[%clk 01:41:44]} {[%emt 00:00:41]} Na5 {[%clk 01:28:08]} {[%emt
00:07:30]} 6. Nge2 {[%clk 01:41:47]} {[%emt 00:00:27]} Nxc4 {[%clk 01:20:21]}
{[%emt 00:08:17]} 7. dxc4 {[%clk 01:41:58]} {[%emt 00:00:19]} Be7 {[%clk
01:17:15]} {[%emt 00:03:36]} 8. Ng3 {[%clk 01:37:46]} {[%emt 00:04:41]} d6
{[%clk 01:17:11]} {[%emt 00:00:35]} 9. Qf3 {[%clk 01:33:01]} {[%emt 00:05:14]}
g6 {[%clk 01:08:54]} {[%emt 00:08:48]} 10. Qd3 {[%clk 01:28:15]} {[%emt
00:05:15]} Be6 {[%clk 01:06:00]} {[%emt 00:03:24]} 11. O-O {[%clk 01:23:30]}
{[%emt 00:05:15]} h5 {[%clk 01:04:00]} {[%emt 00:02:31]} 12. Nd5 {[%clk
01:17:26]} {[%emt 00:06:34]} h4 {[%clk 00:54:56]} {[%emt 00:09:34]} 13. Ne2
{[%clk 01:14:57]} {[%emt 00:02:59]} h3 {[%clk 00:48:16]} {[%emt 00:07:11]} 14.
g3 {[%clk 01:13:23]} {[%emt 00:02:03]} Nxd5 {[%clk 00:48:04]} {[%emt 00:00:43]}
15. cxd5 {[%clk 01:13:46]} {[%emt 00:00:06]} Bd7 {[%clk 00:48:13]} {[%emt
00:00:21]} 16. f4 {[%clk 01:09:58]} {[%emt 00:04:18]} Bg4 {[%clk 00:38:56]}
{[%emt 00:09:47]} 17. c4 {[%clk 01:01:17]} {[%emt 00:09:11]} O-O {[%clk
00:31:01]} {[%emt 00:08:25]} 18. f5 {[%clk 00:58:12]} {[%emt 00:03:34]} c6
{[%clk 00:31:10]} {[%emt 00:00:22]} 19. Rf2 {[%clk 00:52:58]} {[%emt 00:05:44]}
Qb6 {[%clk 00:27:06]} {[%emt 00:04:34]} 20. Be3 {[%clk 00:46:31]} {[%emt
00:06:56]} Qa6 {[%clk 00:21:30]} {[%emt 00:06:07]} 21. f6 {[%clk 00:44:11]}
{[%emt 00:02:50]} Bd8 {[%clk 00:21:58]} {[%emt 00:00:02]} 22. Nc3 {[%clk
00:43:33]} {[%emt 00:01:08]} Rc8 {[%clk 00:20:37]} {[%emt 00:01:51]} 23. b3
{[%clk 00:35:02]} {[%emt 00:09:00]} Ba5 {[%clk 00:18:03]} {[%emt 00:03:04]} 24.
Bc1 {[%clk 00:29:57]} {[%emt 00:05:35]} Rfd8 {[%clk 00:07:20]} {[%emt
00:11:13]} 25. Qd2 {[%clk 00:29:29]} {[%emt 00:00:58]} Kf8 {[%clk 00:07:40]}
{[%emt 00:00:10]} 26. Qh6+ {[%clk 00:29:46]} {[%emt 00:00:12]} Ke8 {[%clk
00:08:09]} {[%emt 00:00:02]} 27. Qg7 {[%clk 00:30:06]} {[%emt 00:00:10]} Rc7
{[%clk 00:08:04]} {[%emt 00:00:35]} 28. Qg8+ {[%clk 00:30:30]} {[%emt
00:00:06]} Kd7 {[%clk 00:08:32]} {[%emt 00:00:03]} 29. Qxf7+ {[%clk 00:30:54]}
{[%emt 00:00:06]} Kc8 {[%clk 00:08:59]} {[%emt 00:00:03]} 30. Qxg6 {[%clk
00:31:18]} {[%emt 00:00:06]} Bxc3 {[%clk 00:08:40]} {[%emt 00:00:49]} 31. Qxg4+
{[%clk 00:31:28]} {[%emt 00:00:19]} Kb8 {[%clk 00:09:06]} {[%emt 00:00:03]} 32.
Bb2 {[%clk 00:31:45]} {[%emt 00:00:13]} Bxb2 {[%clk 00:09:24]} {[%emt
00:00:13]} 33. Rxb2 {[%clk 00:32:09]} {[%emt 00:00:06]} cxd5 {[%clk 00:09:35]}
{[%emt 00:00:19]} 34. exd5 {[%clk 00:31:43]} {[%emt 00:00:57]} Qb6+ {[%clk
00:08:23]} {[%emt 00:01:42]} 35. Kh1 {[%clk 00:31:00]} {[%emt 00:01:12]} Rf8
{[%clk 00:07:31]} {[%emt 00:01:23]} 36. Rf1 {[%clk 00:30:10]} {[%emt 00:01:19]}
a5 {[%clk 00:06:23]} {[%emt 00:01:39]} 37. Qxh3 {[%clk 00:27:05]} {[%emt
00:03:35]} 1-0

[Event "FIDE Grand Swiss 2023"]
[Site "Villa Marina, Douglas, Isle of Man, Isle Of Man"]
[Date "2023.10.26"]
[Round "2.52"]
[White "Fawzy, Adham"]
[Black "Kollars, Dmitrij"]
[Result "0-1"]
[TimeControl "40/90 + 30 + 30s/move"]
[WhiteFideId "10613129"]
[BlackFideId "12909572"]
[WhiteElo "2535"]
[BlackElo "2633"]

1. e4 {[%clk 01:40:55]} {[%emt 00:00:05]} e5 {[%clk 01:40:54]} {[%emt
00:00:07]} 2. Nf3 {[%clk 01:41:13]} {[%emt 00:00:12]} Nc6 {[%clk 01:41:19]}
{[%emt 00:00:04]} 3. Bb5 {[%clk 01:41:19]} {[%emt 00:00:24]} Bc5 {[%clk
01:41:22]} {[%emt 00:00:28]} 4. c3 {[%clk 01:39:01]} {[%emt 00:02:47]} Nf6
{[%clk 01:41:36]} {[%emt 00:00:16]} 5. d4 {[%clk 01:38:34]} {[%emt 00:00:57]}
exd4 {[%clk 01:41:59]} {[%emt 00:00:07]} 6. e5 {[%clk 01:38:24]} {[%emt
00:00:40]} Nd5 {[%clk 01:42:17]} {[%emt 00:00:10]} 7. O-O {[%clk 01:33:46]}
{[%emt 00:05:08]} Be7 {[%clk 01:40:35]} {[%emt 00:02:13]} 8. cxd4 {[%clk
01:28:37]} {[%emt 00:05:39]} d6 {[%clk 01:40:39]} {[%emt 00:00:25]} 9. Nc3
{[%clk 01:25:29]} {[%emt 00:03:39]} Be6 {[%clk 01:40:57]} {[%emt 00:00:12]} 10.
exd6 {[%clk 01:20:08]} {[%emt 00:05:51]} cxd6 {[%clk 01:31:37]} {[%emt
00:09:49]} 11. Ne4 {[%clk 01:01:01]} {[%emt 00:19:37]} h6 {[%clk 01:24:47]}
{[%emt 00:07:19]} 12. Bd3 {[%clk 01:00:11]} {[%emt 00:01:20]} Qd7 {[%clk
01:20:33]} {[%emt 00:04:45]} 13. Re1 {[%clk 00:54:48]} {[%emt 00:05:52]} O-O-O
{[%clk 01:09:52]} {[%emt 00:11:12]} 14. Nc3 {[%clk 00:52:44]} {[%emt 00:02:34]}
Kb8 {[%clk 01:07:18]} {[%emt 00:03:04]} 15. Be4 {[%clk 00:46:28]} {[%emt
00:06:43]} Nxc3 {[%clk 01:03:18]} {[%emt 00:04:32]} 16. bxc3 {[%clk 00:43:45]}
{[%emt 00:03:13]} d5 {[%clk 01:03:18]} {[%emt 00:00:30]} 17. Bf4+ {[%clk
00:40:38]} {[%emt 00:03:38]} Bd6 {[%clk 00:59:15]} {[%emt 00:04:33]} 18. Bxd6+
{[%clk 00:40:39]} {[%emt 00:00:29]} Qxd6 {[%clk 00:59:42]} {[%emt 00:00:03]} 19.
Bd3 {[%clk 00:41:07]} {[%emt 00:00:02]} Rc8 {[%clk 00:58:58]} {[%emt 00:01:14]}
20. Re3 {[%clk 00:37:40]} {[%emt 00:03:56]} Rc7 {[%clk 00:56:32]} {[%emt
00:02:56]} 21. Qd2 {[%clk 00:36:26]} {[%emt 00:01:44]} Rhc8 {[%clk 00:50:35]}
{[%emt 00:06:27]} 22. Rb1 {[%clk 00:34:53]} {[%emt 00:02:03]} g5 {[%clk
00:47:48]} {[%emt 00:03:18]} 23. Rb5 {[%clk 00:27:56]} {[%emt 00:07:27]} Ne7
{[%clk 00:46:24]} {[%emt 00:01:53]} 24. Rb3 {[%clk 00:27:15]} {[%emt 00:01:11]}
Nc6 {[%clk 00:33:42]} {[%emt 00:13:12]} 25. Bf1 {[%clk 00:25:46]} {[%emt
00:01:57]} g4 {[%clk 00:31:57]} {[%emt 00:02:17]} 26. Ne1 {[%clk 00:24:45]}
{[%emt 00:01:30]} h5 {[%clk 00:31:38]} {[%emt 00:00:50]} 27. Bb5 {[%clk
00:20:15]} {[%emt 00:05:00]} Na5 {[%clk 00:31:12]} {[%emt 00:00:55]} 28. Rb4
{[%clk 00:18:34]} {[%emt 00:02:12]} Bd7 {[%clk 00:27:24]} {[%emt 00:04:17]} 29.
Bf1 {[%clk 00:18:05]} {[%emt 00:00:59]} h4 {[%clk 00:24:03]} {[%emt 00:03:52]}
30. g3 {[%clk 00:15:19]} {[%emt 00:03:16]} Bf5 {[%clk 00:19:20]} {[%emt
00:05:12]} 31. Re5 {[%clk 00:11:34]} {[%emt 00:04:16]} Be6 {[%clk 00:16:54]}
{[%emt 00:02:55]} 32. Re3 {[%clk 00:10:55]} {[%emt 00:01:10]} Bf5 {[%clk
00:14:58]} {[%emt 00:02:26]} 33. Re5 {[%clk 00:11:17]} {[%emt 00:00:09]} Bd7
{[%clk 00:15:14]} {[%emt 00:00:13]} 34. Re3 {[%clk 00:06:37]} {[%emt 00:05:11]}
Qh6 {[%clk 00:15:34]} {[%emt 00:00:09]} 35. Qe2 {[%clk 00:04:37]} {[%emt
00:02:31]} hxg3 {[%clk 00:10:16]} {[%emt 00:05:48]} 36. hxg3 {[%clk 00:04:21]}
{[%emt 00:00:45]} Nc4 {[%clk 00:07:12]} {[%emt 00:03:34]} 37. Re7 {[%clk
00:01:51]} {[%emt 00:03:00]} Rh8 {[%clk 00:07:02]} {[%emt 00:00:41]} 38. Bg2
{[%clk 00:02:19]} {[%emt 00:00:02]} Nd2 {[%emt 00:00:36]} 39. f4 {[%clk
00:02:33]} gxf3 {[%clk 00:06:50]} {[%emt 00:00:51]} 40. Nxf3 {[%clk 00:02:51]}
{[%emt 00:00:13]} Ne4 {[%clk 00:06:03]} {[%emt 00:01:17]} 41. Qe1 {[%clk
00:47:00]} {[%emt 00:06:21]} Rxc3 {[%clk 00:30:25]} {[%emt 00:26:08]} 42. Rxd7
{[%clk 00:45:52]} {[%emt 00:01:38]} Rc1 {[%clk 00:30:33]} {[%emt 00:00:22]} 43.
Rbxb7+ {[%clk 00:45:57]} {[%emt 00:00:25]} Kc8 {[%clk 00:30:54]} {[%emt
00:00:08]} 44. Rdc7+ {[%clk 00:46:02]} {[%emt 00:00:26]} Rxc7 {[%clk 00:31:19]}
{[%emt 00:00:06]} 45. Rxc7+ {[%clk 00:46:27]} {[%emt 00:00:05]} Kxc7 {[%clk
00:31:46]} {[%emt 00:00:02]} 46. Qa5+ {[%clk 00:45:57]} {[%emt 00:01:01]} Kb8
{[%clk 00:24:56]} {[%emt 00:07:18]} 47. Qb5+ {[%clk 00:43:44]} {[%emt
00:02:44]} Kc8 {[%clk 00:20:41]} {[%emt 00:04:44]} 48. Qd3 {[%clk 00:37:48]}
{[%emt 00:06:27]} Qc1+ {[%clk 00:17:40]} {[%emt 00:03:31]} 49. Bf1 {[%clk
00:38:16]} {[%emt 00:00:02]} Rh3 {[%clk 00:11:00]} {[%emt 00:07:10]} 50. Qa6+
{[%clk 00:32:48]} {[%emt 00:05:59]} Kd8 {[%clk 00:10:54]} {[%emt 00:00:34]} 51.
Qa5+ {[%clk 00:32:19]} {[%emt 00:01:01]} Ke7 {[%clk 00:10:52]} {[%emt
00:00:28]} 52. Qb4+ {[%clk 00:28:49]} {[%emt 00:04:03]} Kf6 {[%clk 00:10:27]}
{[%emt 00:00:54]} 53. Nd2 {[%clk 00:28:54]} {[%emt 00:00:27]} Rxg3+ {[%clk
00:09:57]} {[%emt 00:01:00]} 54. Kh2 {[%clk 00:29:22]} {[%emt 00:00:02]} Qxd2+
{[%clk 00:10:14]} {[%emt 00:00:13]} 0-1